bitfinex/quotes_BTCUSD_20250920
["timestamp","ask_amount","ask_price","bid_price","bid_amount"]
[1758350319770,0.87196164,115880.0,115870.0,0.5533269]
[1758350320786,0.87196164,115880.0,115870.0,0.553842]
[1758350330791,0.87196164,115880.0,115870.0,0.11327477]
[1758350331003,0.87196164,115880.0,115870.0,0.38115477]
[1758350331759,0.87196164,115880.0,115870.0,0.553762]
[1758350332266,0.87191147,115880.0,115870.0,0.553762]
[1758350333883,0.87191147,115880.0,115870.0,0.38115477]
[1758350334096,0.87191147,115880.0,115870.0,0.553762]
[1758350334834,0.87191147,115880.0,115870.0,0.38115477]
[1758350335349,0.87191147,115880.0,115870.0,0.553762]
[1758350346880,0.87191147,115880.0,115870.0,0.38115477]
[1758350347171,0.87191147,115880.0,115870.0,0.553762]
[1758350347614,0.87191147,115880.0,115870.0,0.38115477]
[1758350347827,0.87191147,115880.0,115870.0,0.553762]
[1758350348019,0.87191147,115880.0,115870.0,0.38115477]
[1758350348226,0.87191147,115880.0,115870.0,0.553762]
[1758350351416,0.54975449,115880.0,115870.0,0.555862]
[1758350351631,0.87191147,115880.0,115870.0,0.555862]
[1758350352364,0.87191147,115880.0,115870.0,0.38325477]
[1758350352565,0.87191147,115880.0,115870.0,0.555862]
[1758350352934,0.87191147,115880.0,115870.0,0.38325477]
[1758350353696,0.87191147,115880.0,115870.0,0.11537477]
[1758350353904,0.89524147,115880.0,115870.0,0.38111477]
[1758350361975,1.21742893,115880.0,115870.0,0.38111477]
[1758350373986,1.21136151,115880.0,115870.0,0.38111477]
[1758350374193,1.21743561,115880.0,115870.0,0.39623752]
[1758350374416,1.21743561,115880.0,115870.0,0.38111477]
[1758350374842,1.21743561,115880.0,115870.0,0.553722]
[1758350375052,1.21743561,115880.0,115870.0,0.555832]
[1758350375264,1.19410561,115880.0,115870.0,0.555832]
[1758350376669,1.19410561,115880.0,115870.0,0.38322477]
[1758350377383,1.19410561,115880.0,115870.0,0.555832]
[1758350377679,1.19410561,115880.0,115870.0,0.38322477]
[1758350378817,1.19410561,115880.0,115870.0,0.555832]
[1758350379149,1.19410561,115880.0,115870.0,0.38322477]
[1758350382646,1.19410561,115880.0,115870.0,0.555832]
[1758350384831,0.54976117,115880.0,115870.0,0.555832]
[1758350385275,1.19410561,115880.0,115870.0,0.555832]
[1758350395423,1.19410561,115880.0,115870.0,0.38322477]
[1758350404381,1.18803151,115880.0,115870.0,0.38322477]
[1758350404609,1.19410551,115880.0,115870.0,0.38322477]
[1758350406814,1.21866551,115880.0,115870.0,0.11327477]
[1758350406951,1.21866551,115880.0,115870.0,0.35774477]
[1758350408595,1.21866551,115880.0,115870.0,0.08978477]
[1758350408919,1.21866551,115880.0,115870.0,0.35770477]
[1758350409136,1.21866543,115880.0,115870.0,0.35770477]
[1758350410593,1.21866543,115880.0,115870.0,0.08978477]
[1758350410775,1.21866543,115880.0,115870.0,0.35770477]
[1758350421843,0.89649706,115880.0,115870.0,0.35770477]
[1758350423770,0.89649706,115880.0,115870.0,0.38053477]
[1758350425116,0.89649706,115880.0,115870.0,0.38258477]
[1758350450337,0.89649706,115880.0,115870.0,0.38053477]
[1758350452948,0.89649717,115880.0,115870.0,0.38053477]
[1758350456950,0.89649718,115880.0,115870.0,0.38053477]
[1758350463687,0.87147474,115880.0,115870.0,0.38053477]
[1758350466255,0.54929867,115880.0,115870.0,0.38053477]
[1758350466463,0.84691474,115880.0,115870.0,0.38053477]
[1758350468775,0.52473867,115880.0,115870.0,0.553142]
[1758350468992,0.84691474,115880.0,115870.0,0.555282]
[1758350469403,0.84691272,115880.0,115870.0,0.555282]
[1758350474349,0.84691272,115880.0,115870.0,0.38267477]
[1758350474545,0.84691272,115880.0,115870.0,0.555282]
[1758350483889,1.16906009,115880.0,115870.0,0.555282]
[1758350487007,1.16906009,115880.0,115870.0,0.38267477]
[1758350492110,1.16906009,115880.0,115870.0,0.555282]
[1758350500882,1.16906009,115880.0,115870.0,0.11475477]
[1758350501044,1.16906009,115880.0,115870.0,0.38247477]
[1758350501594,1.16906009,115880.0,115870.0,0.555082]
[1758350501796,1.16906009,115880.0,115870.0,0.38247477]
[1758350501988,1.16906009,115880.0,115870.0,0.11475477]
[1758350502222,1.19398009,115880.0,115870.0,0.35750477]
[1758350503014,1.19398009,115880.0,115870.0,0.08978477]
[1758350503228,1.19398009,115880.0,115870.0,0.35750477]
[1758350506221,1.19398009,115880.0,115870.0,0.08978477]
[1758350506435,1.19398009,115880.0,115870.0,0.35750477]
[1758350515543,1.18790807,115880.0,115870.0,0.35750477]
[1758350515759,1.19397765,115880.0,115870.0,0.35750477]
[1758350526476,1.19397806,115880.0,115870.0,0.35750477]
[1758350541739,1.19397806,115880.0,115870.0,0.38053477]
[1758350542475,1.19397956,115880.0,115870.0,0.38053477]
[1758350544294,1.16905956,115880.0,115870.0,0.38053477]
[1758350545821,0.84690865,115880.0,115870.0,0.38053477]
[1758350551126,0.87021865,115880.0,115870.0,0.38053477]
[1758350570396,0.87021878,115880.0,115870.0,0.38053477]
[1758350572501,0.84690878,115880.0,115870.0,0.38265477]
[1758350574598,0.84690879,115880.0,115870.0,0.38265477]
[1758350585025,0.52473626,115880.0,115870.0,0.38265477]
[1758350585243,0.52473625,115880.0,115870.0,0.38265477]
[1758350585456,0.84690878,115880.0,115870.0,0.38265477]
[1758350603294,0.52473625,115880.0,115870.0,0.38265477]
[1758350603475,0.84690878,115880.0,115870.0,0.38265477]
[1758350607976,1.16906477,115880.0,115870.0,0.38265477]
[1758350617590,0.52473625,115880.0,115870.0,0.38265477]
[1758350617798,1.16906477,115880.0,115870.0,0.555262]
[1758350619943,1.16906477,115880.0,115870.0,0.38265477]
[1758350621289,1.16906477,115880.0,115870.0,0.555262]
[1758350621502,1.16906493,115880.0,115870.0,0.555262]
[1758350622843,0.52473641,115880.0,115870.0,0.555262]
[1758350623048,1.16906493,115880.0,115870.0,0.555262]
[1758350640736,0.52473641,115880.0,115870.0,0.555262]
[1758350640962,1.16906495,115880.0,115870.0,0.555262]
[1758350643987,1.16906495,115880.0,115870.0,0.555302]
[1758350646454,1.16906495,115880.0,115870.0,0.287542]
[1758350646701,1.16906495,115880.0,115870.0,0.555302]
[1758350649806,1.19172495,115880.0,115870.0,0.35754477]
[1758350656250,1.19172495,115880.0,115870.0,0.530152]
[1758350661775,0.54739643,115880.0,115870.0,0.530152]
[1758350662016,1.19172495,115880.0,115870.0,0.35750477]
[1758350662648,1.19172495,115880.0,115870.0,0.08978477]
[1758350662847,1.19172495,115880.0,115870.0,0.35750477]
[1758350665787,1.19172495,115880.0,115870.0,0.530112]
[1758350667975,0.86957168,115880.0,115870.0,0.530112]
[1758350670884,0.86957168,115880.0,115870.0,0.555032]
[1758350672623,0.54739643,115880.0,115870.0,0.555032]
[1758350672803,0.84691168,115880.0,115870.0,0.557182]
[1758350676176,0.84691168,115880.0,115870.0,0.38457477]
[1758350682285,0.84691168,115880.0,115870.0,0.557182]
[1758350683397,0.84691168,115880.0,115870.0,0.38457477]
[1758350684140,0.84691163,115880.0,115870.0,0.38457477]
[1758350707152,0.84691163,115880.0,115870.0,0.557182]
[1758350710614,0.84691088,115880.0,115870.0,0.557182]
[1758350727801,1.16907353,115880.0,115870.0,0.557182]
[1758350732091,0.03201591,115880.0,115870.0,0.88250095]
[1758350732308,0.02594491,115880.0,115870.0,0.88250095]
[1758350733140,0.02594491,115880.0,115870.0,0.87850095]
[1758350733347,0.02594491,115880.0,115870.0,0.91665285]
[1758350733574,0.02594491,115880.0,115870.0,1.18475285]
[1758350733965,0.02594491,115880.0,115870.0,1.19175285]
[1758350734183,0.02594491,115880.0,115870.0,1.19185285]
[1758350741078,0.02594491,115880.0,115870.0,0.8696839]
[1758350741285,0.02594491,115880.0,115870.0,1.19185285]
[1758350742116,0.1004,115890.0,115880.0,0.17259233]
[1758350742291,0.10044695,115890.0,115880.0,0.555942]
[1758350742497,0.12638891,115890.0,115880.0,0.555942]
[1758350742711,0.12638891,115890.0,115880.0,0.5564571]
[1758350743524,0.12638891,115890.0,115880.0,0.5654571]
[1758350745048,0.12638891,115890.0,115880.0,0.8331371]
[1758350745275,0.12638891,115890.0,115880.0,0.5654571]
[1758350745622,0.12638891,115890.0,115880.0,0.8331371]
[1758350749283,0.12638891,115890.0,115880.0,0.8973477]
[1758350760959,0.12638891,115890.0,115880.0,0.8973077]
[1758350761174,0.12638891,115890.0,115880.0,0.6296677]
[1758350761366,0.12638891,115890.0,115880.0,0.95183665]
[1758350761731,0.12638891,115890.0,115880.0,1.21947665]
[1758350762903,0.12638891,115890.0,115880.0,1.15526605]
[1758350763546,0.12638891,115890.0,115880.0,0.5654571]
[1758350763745,0.45069786,115890.0,115880.0,0.5654571]
[1758350763963,0.45069786,115890.0,115880.0,0.8299471]
[1758350765590,0.12852891,115890.0,115880.0,0.8299471]
[1758350766588,0.13158891,115890.0,115880.0,0.8052571]
[1758350766811,0.47717786,115890.0,115880.0,0.8052571]
[1758350767036,0.15500891,115890.0,115880.0,0.8295271]
[1758350767299,0.13158891,115890.0,115880.0,0.8295271]
[1758350769979,0.12852891,115890.0,115880.0,0.8295271]
[1758350779437,0.45069786,115890.0,115880.0,0.8295271]
[1758350780720,0.45069786,115890.0,115880.0,0.8324671]
[1758350781079,0.12852891,115890.0,115880.0,0.8324671]
[1758350782913,0.12852891,115890.0,115880.0,0.8081971]
[1758350783118,0.12852891,115890.0,115880.0,0.8295271]
[1758350788481,0.12852891,115890.0,115880.0,0.8326271]
[1758350793878,0.12852891,115890.0,115880.0,0.5649871]
[1758350794099,0.12852891,115890.0,115880.0,0.8326271]
[1758350799787,0.12852891,115890.0,115880.0,0.9259071]
[1758350804596,0.12852891,115890.0,115880.0,0.8326271]
[1758350809377,0.12852891,115890.0,115880.0,0.9259071]
[1758350810180,0.12638891,115890.0,115880.0,0.9259071]
[1758350838383,0.12638891,115890.0,115880.0,0.8326271]
[1758350841929,0.12638891,115890.0,115880.0,1.15466765]
[1758350847808,0.12638891,115890.0,115880.0,1.24794765]
[1758350849874,0.12638891,115890.0,115880.0,1.24790914]
[1758350853164,0.12638891,115890.0,115880.0,0.9259071]
[1758350853389,0.12638891,115890.0,115880.0,1.24790914]
[1758350856170,0.12638891,115890.0,115880.0,1.60006308]
[1758350856407,0.10044695,115890.0,115880.0,1.60006308]
[1758350856615,0.10044695,115890.0,115880.0,1.62600271]
[1758350856822,0.10044695,115890.0,115880.0,1.62610271]
[1758350857683,0.10044695,115890.0,115880.0,1.62110271]
[1758350858586,0.10044695,115890.0,115880.0,1.62810271]
[1758350858830,0.10044695,115890.0,115880.0,1.62410271]
[1758350859019,0.10044695,115890.0,115880.0,1.63010271]
[1758350862456,0.10044695,115890.0,115880.0,1.60416308]
[1758350864630,0.10044695,115890.0,115880.0,1.66817943]
[1758350868951,0.10044695,115890.0,115880.0,1.40053943]
[1758350869109,0.10044695,115890.0,115880.0,1.66817943]
[1758350869526,0.10044695,115890.0,115880.0,1.66813943]
[1758350880991,0.10044695,115890.0,115880.0,1.67660975]
[1758350882418,0.10044695,115890.0,115880.0,1.66813943]
[1758350884071,0.10044695,115890.0,115880.0,1.67697671]
[1758350884475,0.10044695,115890.0,115880.0,1.66813943]
[1758350887152,0.10044695,115890.0,115880.0,1.67687285]
[1758350888570,0.10044695,115890.0,115880.0,1.03286877]
[1758350888770,0.10044695,115890.0,115880.0,1.67687285]
[1758350900933,0.10044695,115890.0,115880.0,1.66813943]
[1758350901541,0.10044695,115890.0,115880.0,1.67667553]
[1758350901920,0.10044695,115890.0,115880.0,1.66813943]
[1758350903440,0.10259695,115890.0,115880.0,1.66503943]
[1758350903659,0.10567695,115890.0,115880.0,1.63862943]
[1758350903990,0.12959695,115890.0,115880.0,1.63862943]
[1758350904179,0.12959695,115890.0,115880.0,1.31662739]
[1758350904818,0.12959695,115890.0,115880.0,1.33966739]
[1758350905031,0.12959695,115890.0,115880.0,1.66166943]
[1758350905223,0.10567695,115890.0,115880.0,1.66166943]
[1758350906810,0.10567695,115890.0,115880.0,1.66379943]
[1758350908776,0.10259695,115890.0,115880.0,1.66379943]
[1758350909840,0.10259695,115890.0,115880.0,1.34178533]
[1758350910921,0.10259695,115890.0,115880.0,1.07418533]
[1758350911133,0.10259695,115890.0,115880.0,1.34178533]
[1758350918632,0.10259695,115890.0,115880.0,1.34500533]
[1758350920908,0.10259695,115890.0,115880.0,0.99675535]
[1758350921117,0.10259695,115890.0,115880.0,1.34131533]
[1758350921753,0.10259695,115890.0,115880.0,1.34453533]
[1758350922070,0.10044695,115890.0,115880.0,1.34453533]
[1758350923422,0.10044695,115890.0,115880.0,1.37047483]
[1758350927610,0.10044695,115890.0,115880.0,1.04848485]
[1758350927805,0.10044695,115890.0,115880.0,1.37047483]
[1758350932021,0.10044695,115890.0,115880.0,1.04848485]
[1758350932226,0.10044695,115890.0,115880.0,1.37047483]
[1758350971822,0.10044695,115890.0,115880.0,1.69243821]
[1758350996431,0.10044695,115890.0,115880.0,1.37046153]
[1758351004116,0.10044695,115890.0,115880.0,1.04848485]
[1758351004326,0.10044695,115890.0,115880.0,1.37046153]
[1758351027315,0.10044695,115890.0,115880.0,1.69243821]
[1758351031817,0.10044695,115890.0,115880.0,1.37042694]
[1758351059107,0.10044695,115890.0,115880.0,1.37034694]
[1758351060464,0.10044695,115890.0,115880.0,1.04840485]
[1758351060664,0.10044695,115890.0,115880.0,1.37034694]
[1758351088927,0.10044695,115890.0,115880.0,1.10282694]
[1758351089132,0.10044695,115890.0,115880.0,1.37034694]
[1758351090579,0.10044695,115890.0,115880.0,1.10282694]
[1758351090783,0.10252695,115890.0,115880.0,1.36712694]
[1758351092817,0.10252695,115890.0,115880.0,1.37018694]
[1758351093817,0.10252695,115890.0,115880.0,1.69214415]
[1758351094611,0.10044695,115890.0,115880.0,1.69214415]
[1758351121843,0.10255695,115890.0,115880.0,1.69214415]
[1758351124221,0.10255695,115890.0,115880.0,1.42462415]
[1758351124416,0.10255695,115890.0,115880.0,1.69214415]
[1758351124626,0.10255695,115890.0,115880.0,1.42156415]
[1758351124835,0.10255695,115890.0,115880.0,1.68908415]
[1758351126651,0.10255695,115890.0,115880.0,1.42156415]
[1758351126854,0.10255695,115890.0,115880.0,0.77766485]
[1758351127061,0.10255695,115890.0,115880.0,1.68916415]
[1758351129143,0.10553695,115890.0,115880.0,1.66450415]
[1758351129358,0.12864695,115890.0,115880.0,1.39686415]
[1758351129565,0.12864695,115890.0,115880.0,1.66450415]
[1758351130590,0.12864695,115890.0,115880.0,1.68737415]
[1758351131058,0.12864695,115890.0,115880.0,1.3654245]
[1758351131489,0.12864695,115890.0,115880.0,1.68737415]
[1758351131649,0.10553695,115890.0,115880.0,1.02060485]
[1758351131843,0.12864695,115890.0,115880.0,1.3425545]
[1758351133426,0.13717759,115890.0,115880.0,1.3425545]
[1758351136716,0.12864695,115890.0,115880.0,1.3425545]
[1758351136936,0.12864695,115890.0,115880.0,1.3654245]
[1758351137550,0.10553695,115890.0,115880.0,1.3654245]
[1758351138392,0.10553695,115890.0,115880.0,1.3674345]
[1758351143595,0.10255695,115890.0,115880.0,1.3674345]
[1758351144582,0.10044695,115890.0,115880.0,1.3703645]
[1758351152593,0.10259695,115890.0,115880.0,1.3703645]
[1758351153801,0.10044695,115890.0,115880.0,1.37039044]
[1758351175620,0.10259695,115890.0,115880.0,1.02261485]
[1758351175796,0.10578695,115890.0,115880.0,1.02261485]
[1758351176209,0.10578695,115890.0,115880.0,1.04574485]
[1758351177493,0.10578695,115890.0,115880.0,1.36772044]
[1758351179273,0.10259695,115890.0,115880.0,1.36772044]
[1758351186424,0.10259695,115890.0,115880.0,1.37094044]
[1758351188985,0.10259695,115890.0,115880.0,1.36772044]
[1758351190290,0.10259695,115890.0,115880.0,1.04574485]
[1758351190516,0.10259695,115890.0,115880.0,1.36772044]
[1758351191753,0.12990695,115890.0,115880.0,1.02064485]
[1758351192896,0.10568695,115890.0,115880.0,1.02064485]
[1758351193093,0.10259695,115890.0,115880.0,1.02267485]
[1758351193312,0.10044695,115890.0,115880.0,1.04991485]
[1758351201284,0.10044695,115890.0,115880.0,1.37189044]
[1758351204365,0.10044695,115890.0,115880.0,1.04991485]
[1758351206315,0.10259695,115890.0,115880.0,1.04991485]
[1758351206492,0.10259695,115890.0,115880.0,1.04669485]
[1758351207318,0.10044695,115890.0,115880.0,1.04988485]
[1758351208360,0.10044695,115890.0,115880.0,1.37186044]
[1758351210207,0.10044695,115890.0,115880.0,1.04988485]
[1758351210418,0.10044695,115890.0,115880.0,1.37186044]
[1758351215898,0.10044695,115890.0,115880.0,1.37186737]
[1758351220978,0.10044695,115890.0,115880.0,1.04988485]
[1758351221181,0.10044695,115890.0,115880.0,1.37186737]
[1758351222747,0.10259695,115890.0,115880.0,1.36867737]
[1758351224048,0.12853454,115890.0,115880.0,1.36867737]
[1758351224227,0.12853454,115890.0,115880.0,1.37186737]
[1758351229672,0.12638454,115890.0,115880.0,1.37186737]
[1758351241862,0.10044695,115890.0,115880.0,1.37186737]
[1758351242809,0.10044695,115890.0,115880.0,1.04988485]
[1758351243023,0.10044695,115890.0,115880.0,1.37186737]
[1758351247406,0.10044695,115890.0,115880.0,1.04988485]
[1758351247612,0.10258695,115890.0,115880.0,1.04669485]
[1758351247812,0.10258695,115890.0,115880.0,1.36867737]
[1758351247998,0.12852454,115890.0,115880.0,1.36867737]
[1758351248885,0.13172454,115890.0,115880.0,1.34469737]
[1758351249096,0.15597454,115890.0,115880.0,1.34266737]
[1758351249688,0.15597454,115890.0,115880.0,1.36641737]
[1758351250575,0.13172454,115890.0,115880.0,1.36641737]
[1758351251218,0.13172454,115890.0,115880.0,1.36857737]
[1758351251954,0.12852454,115890.0,115880.0,1.36857737]
[1758351256021,0.12852454,115890.0,115880.0,1.69359989]
[1758351259407,0.12638454,115890.0,115880.0,1.69359989]
[1758351275941,0.12638454,115890.0,115880.0,1.37158088]
[1758351286497,0.12846454,115890.0,115880.0,1.36854088]
[1758351288606,0.12846454,115890.0,115880.0,1.37174088]
[1758351288993,0.12846454,115890.0,115880.0,1.36854088]
[1758351290588,0.12638454,115890.0,115880.0,1.36854088]
[1758351290792,0.12638454,115890.0,115880.0,1.37174088]
[1758351295922,0.12638454,115890.0,115880.0,1.04979485]
[1758351296161,0.12839454,115890.0,115880.0,1.37174088]
[1758351300726,0.12839454,115890.0,115880.0,1.04979485]
[1758351300902,0.12839454,115890.0,115880.0,1.37174088]
[1758351301494,0.12839454,115890.0,115880.0,1.36854088]
[1758351302882,0.12839454,115890.0,115880.0,1.37154088]
[1758351303232,0.12839454,115890.0,115880.0,1.36854088]
[1758351304252,0.12839454,115890.0,115880.0,1.37154088]
[1758351304462,0.12638454,115890.0,115880.0,1.37154088]
[1758351307393,0.10044695,115890.0,115880.0,1.37154088]
[1758351316646,0.10044695,115890.0,115880.0,1.04959485]
[1758351316864,0.10044695,115890.0,115880.0,1.37154088]
[1758351321033,0.10254695,115890.0,115880.0,1.36854088]
[1758351323242,0.10254695,115890.0,115880.0,1.36676168]
[1758351323447,0.10254695,115890.0,115880.0,1.3640276]
[1758351324566,0.10254695,115890.0,115880.0,1.3670276]
[1758351327387,0.10044695,115890.0,115880.0,1.3670276]
[1758351337899,0.10044695,115890.0,115880.0,1.68897115]
[1758351341844,0.12638454,115890.0,115880.0,1.68897115]
[1758351343461,0.12638454,115890.0,115880.0,1.39750115]
[1758351343706,0.15634454,115890.0,115880.0,0.99470535]
[1758351343939,0.15634454,115890.0,115880.0,1.31665014]
[1758351344182,0.15634454,115890.0,115880.0,0.99474535]
[1758351344401,0.15634454,115890.0,115880.0,1.31669014]
[1758351344976,0.17358454,115890.0,115880.0,1.31669014]
[1758351350554,0.17358454,115890.0,115880.0,1.34009014]
[1758351351142,0.14896454,115890.0,115880.0,1.34009014]
[1758351351340,0.14896454,115890.0,115880.0,1.34224014]
[1758351354006,0.14576454,115890.0,115880.0,1.34224014]
[1758351362265,0.14576454,115890.0,115880.0,1.07452014]
[1758351362450,0.14576454,115890.0,115880.0,1.34220014]
[1758351369569,0.14576454,115890.0,115880.0,1.34523014]
[1758351377799,0.14362454,115890.0,115880.0,1.34523014]
[1758351381184,0.14362454,115890.0,115880.0,1.02328535]
[1758351381535,0.14362454,115890.0,115880.0,1.34523014]
[1758351387494,0.14362454,115890.0,115880.0,1.02328535]
[1758351387696,0.14362454,115890.0,115880.0,1.66717493]
[1758351394930,0.14362454,115890.0,115880.0,1.34523014]
[1758351396576,0.14362454,115890.0,115880.0,1.66717493]
[1758351397324,0.14362454,115890.0,115880.0,1.34523014]
[1758351399381,0.14362454,115890.0,115880.0,1.66717493]
[1758351399843,0.14362454,115890.0,115880.0,1.34526996]
[1758351405477,0.14862454,115890.0,115880.0,1.22551996]
[1758351405910,0.14862454,115890.0,115880.0,1.24981996]
[1758351407164,0.14862454,115890.0,115880.0,0.98217996]
[1758351407387,0.14862454,115890.0,115880.0,1.24981996]
[1758351409124,0.14862454,115890.0,115880.0,1.34309996]
[1758351411730,0.14564454,115890.0,115880.0,1.34309996]
[1758351414253,0.14564454,115890.0,115880.0,1.02111535]
[1758351414463,0.14564454,115890.0,115880.0,1.34309996]
[1758351418438,0.14564454,115890.0,115880.0,1.07545996]
[1758351418637,0.14564454,115890.0,115880.0,1.34309996]
[1758351421050,0.14564454,115890.0,115880.0,1.34633996]
[1758351423981,0.14564454,115890.0,115880.0,0.75671535]
[1758351424211,0.14564454,115890.0,115880.0,1.34633996]
[1758351433539,0.14362454,115890.0,115880.0,1.34633996]
[1758351435123,0.14895454,115890.0,115880.0,1.24981996]
[1758351435573,0.14570454,115890.0,115880.0,1.24981996]
[1758351439173,0.14570454,115890.0,115880.0,1.34309996]
[1758351443817,0.14570454,115890.0,115880.0,1.24981996]
[1758351444274,0.14570454,115890.0,115880.0,0.92783535]
[1758351444484,0.14570454,115890.0,115880.0,1.24981996]
[1758351444938,0.14570454,115890.0,115880.0,0.92783535]
[1758351445144,0.14570454,115890.0,115880.0,1.24981996]
[1758351446426,0.14570454,115890.0,115880.0,0.98217996]
[1758351446654,0.14570454,115890.0,115880.0,1.24981996]
[1758351448665,0.14570454,115890.0,115880.0,1.24973655]
[1758351449701,0.14570454,115890.0,115880.0,1.25277655]
[1758351453511,0.14362454,115890.0,115880.0,1.25277655]
[1758351461876,0.14362454,115890.0,115880.0,1.25279569]
[1758351472934,0.14362454,115890.0,115880.0,0.66315194]
[1758351473137,0.14362454,115890.0,115880.0,1.25279569]
[1758351474668,0.14559454,115890.0,115880.0,1.25279569]
[1758351476019,0.14559454,115890.0,115880.0,0.66315194]
[1758351476162,0.14559454,115890.0,115880.0,1.25279569]
[1758351476397,0.14559454,115890.0,115880.0,0.63581194]
[1758351476575,0.14559454,115890.0,115880.0,1.24870569]
[1758351476980,0.47063829,115890.0,115880.0,0.90126194]
[1758351477190,0.15447454,115890.0,115880.0,0.90126194]
[1758351477393,0.17171454,115890.0,115880.0,0.92455194]
[1758351477601,0.14863454,115890.0,115880.0,0.92455194]
[1758351477815,0.14863454,115890.0,115880.0,0.92667194]
[1758351478222,0.14863454,115890.0,115880.0,1.24867569]
[1758351484271,0.14559454,115890.0,115880.0,1.24867569]
[1758351487831,0.14559454,115890.0,115880.0,0.92667194]
[1758351488101,0.14559454,115890.0,115880.0,1.24867569]
[1758351488880,0.32126198,115890.0,115880.0,0.92667194]
[1758351489113,0.30402198,115890.0,115880.0,0.92667194]
[1758351489343,0.62602573,115890.0,115880.0,0.39705326]
[1758351489607,0.64972573,115890.0,115880.0,0.83724559]
[1758351489820,0.64972573,115890.0,115880.0,0.83024559]
[1758351490499,0.62602573,115890.0,115880.0,0.85364559]
[1758351491661,0.62602573,115890.0,115880.0,0.86064559]
[1758351492499,0.62602573,115890.0,115880.0,0.86271559]
[1758351498514,0.62602573,115890.0,115880.0,0.63450136]
[1758351498771,0.64972573,115890.0,115880.0,0.63450136]
[1758351500201,0.64972573,115890.0,115880.0,0.80709369]
[1758351500428,0.64972573,115890.0,115880.0,0.63450136]
[1758351501150,0.64972573,115890.0,115880.0,0.80709369]
[1758351502184,0.64972573,115890.0,115880.0,0.63450136]
[1758351503015,0.64972573,115890.0,115880.0,0.80709369]
[1758351503657,0.64972573,115890.0,115880.0,0.63450136]
[1758351505602,0.64972573,115890.0,115880.0,0.80709369]
[1758351506419,0.64972573,115890.0,115880.0,0.82983369]
[1758351507018,0.64972573,115890.0,115880.0,0.65724136]
[1758351508087,0.32772198,115890.0,115880.0,0.65724136]
[1758351508356,0.64972573,115890.0,115880.0,0.65724136]
[1758351508804,0.64972573,115890.0,115880.0,0.63450136]
[1758351511356,0.64972573,115890.0,115880.0,0.63440136]
[1758351512499,0.64972573,115890.0,115880.0,0.65714136]
[1758351513604,0.62602573,115890.0,115880.0,0.65714136]
[1758351513812,0.62602573,115890.0,115880.0,0.65919136]
[1758351515077,0.62602573,115890.0,115880.0,0.83178369]
[1758351515619,0.62602573,115890.0,115880.0,0.65919136]
[1758351519442,0.63209899,115890.0,115880.0,0.65919136]
[1758351520549,0.63209899,115890.0,115880.0,0.83178369]
[1758351523162,0.63209899,115890.0,115880.0,0.65919136]
[1758351523574,0.63209899,115890.0,115880.0,0.83178369]
[1758351523779,0.31009524,115890.0,115880.0,0.83178369]
[1758351524783,0.31009524,115890.0,115880.0,0.65919136]
[1758351526166,0.31009524,115890.0,115880.0,0.83178369]
[1758351528404,0.31009524,115890.0,115880.0,0.65919136]
[1758351530173,0.31009524,115890.0,115880.0,0.83178369]
[1758351530596,0.30700524,115890.0,115880.0,0.83178369]
[1758351530965,0.30700563,115890.0,115880.0,0.83178369]
[1758351532885,0.30700563,115890.0,115880.0,0.65919136]
[1758351534177,0.30700563,115890.0,115880.0,0.82578369]
[1758351534573,0.30700563,115890.0,115880.0,0.83278369]
[1758351534773,0.30700563,115890.0,115880.0,0.66019136]
[1758351535059,0.30700563,115890.0,115880.0,0.83278369]
[1758351539373,0.30700563,115890.0,115880.0,0.83584369]
[1758351557670,0.30700634,115890.0,115880.0,0.83584369]
[1758351561587,0.30093198,115890.0,115880.0,0.83584369]
[1758351561792,0.62907305,115890.0,115880.0,0.83584369]
[1758351566677,0.62907305,115890.0,115880.0,0.56518369]
[1758351567019,0.62907305,115890.0,115880.0,0.83290369]
[1758351577258,0.62299868,115890.0,115880.0,0.83290369]
[1758351578377,0.30093198,115890.0,115880.0,0.83290369]
[1758351579789,0.30093198,115890.0,115880.0,0.83603369]
[1758351583991,0.62298913,115890.0,115880.0,0.83603369]
[1758351598223,0.62298913,115890.0,115880.0,0.83290369]
[1758351600278,0.62298913,115890.0,115880.0,0.56518369]
[1758351600523,0.62298913,115890.0,115880.0,0.83282369]
[1758351602558,0.62595913,115890.0,115880.0,0.83282369]
[1758351607727,0.62298913,115890.0,115880.0,0.83282369]
[1758351610408,0.30093198,115890.0,115880.0,0.83282369]
[1758351610558,0.62298913,115890.0,115880.0,0.83282369]
[1758351625281,0.30093198,115890.0,115880.0,0.83282369]
[1758351625489,0.62298913,115890.0,115880.0,0.83282369]
[1758351626177,0.30093198,115890.0,115880.0,0.83282369]
[1758351626382,0.30093198,115890.0,115880.0,0.83589369]
[1758351626595,0.62298913,115890.0,115880.0,0.83589369]
[1758351627468,0.30093198,115890.0,115880.0,0.83589369]
[1758351627877,0.62298913,115890.0,115880.0,0.83589369]
[1758351631648,0.62298913,115890.0,115880.0,0.83282369]
[1758351643830,0.62300297,115890.0,115880.0,0.83282369]
[1758351647193,0.45042553,115890.0,115880.0,0.83282369]
[1758351647402,0.62300297,115890.0,115880.0,0.83282369]
[1758351650551,0.30093198,115890.0,115880.0,0.83282369]
[1758351654622,0.12835454,115890.0,115880.0,0.83282369]
[1758351654751,0.14559454,115890.0,115880.0,0.83282369]
[1758351656220,0.31817198,115890.0,115880.0,0.83282369]
[1758351656434,0.30093198,115890.0,115880.0,0.83282369]
[1758351658832,0.62300297,115890.0,115880.0,0.83282369]
[1758351662450,0.30093198,115890.0,115880.0,0.83282369]
[1758351670785,0.30093198,115890.0,115880.0,0.82582369]
[1758351671077,0.30093198,115890.0,115880.0,0.83182369]
[1758351671287,0.30093198,115890.0,115880.0,0.82482369]
[1758351671494,0.30093198,115890.0,115880.0,0.82782369]
[1758351677387,0.30944806,115890.0,115880.0,0.82782369]
[1758351683720,0.64944806,115890.0,115880.0,0.82782369]
[1758351683932,0.64944806,115890.0,115880.0,0.83084369]
[1758351693196,0.64944806,115890.0,115880.0,0.82782369]
[1758351695131,0.64936177,115890.0,115880.0,0.82782369]
[1758351698591,0.97143276,115890.0,115880.0,0.82782369]
[1758351705792,0.97143044,115890.0,115880.0,0.82782369]
[1758351710095,0.97438044,115890.0,115880.0,0.82782369]
[1758351721948,0.97438044,115890.0,115880.0,0.65523136]
[1758351722394,0.99779044,115890.0,115880.0,0.65523136]
[1758351722827,0.99779044,115890.0,115880.0,0.82782369]
[1758351723549,0.97438044,115890.0,115880.0,0.82782369]
[1758351732503,0.97438044,115890.0,115880.0,0.78602769]
[1758351735949,0.97143044,115890.0,115880.0,0.78602769]
[1758351741613,0.96482155,115890.0,115880.0,0.78602769]
[1758351742532,0.64275288,115890.0,115880.0,0.78602769]
[1758351742748,0.96482155,115890.0,115880.0,0.78602769]
[1758351742950,0.64275288,115890.0,115880.0,0.78602769]
[1758351743146,0.96482155,115890.0,115880.0,0.78602769]
[1758351743696,0.64275288,115890.0,115880.0,0.78602769]
[1758351743940,0.96482155,115890.0,115880.0,0.78602769]
[1758351749897,0.96482155,115890.0,115880.0,0.78551259]
[1758351750926,0.96482155,115890.0,115880.0,0.78564788]
[1758351756683,0.96777155,115890.0,115880.0,0.78564788]